{"text_format":"1","workbook":"xlsx","n_sheets":7,"sheets":["DATOS CARTA00","lec.2","ESCRITURA","PULSACIONES","lec.03","lec.04","lec.05"],"not_rendered":{"charts":0,"images":2,"macros":1,"external_links":0,"defined_names":0,"comments":0,"pivot_tables":0},"unopened":[],"bounds":{"document_bytes":16777216,"sheet_cells":100000,"rows_first":2000,"rows_last":500,"rows_between":2000,"halvings":0,"cell_chars":16384,"cell_head_chars":4096},"cells_cut":0,"cells_raw":0,"read":"whole","date_system":"1900"}

{"sheet":"DATOS CARTA00","index":0,"n_rows":58,"n_cols":3,"rows_kept":58,"cut":false,"hidden":true,"merged":[]}
[1,"gases silla lagañas alaska iglesias flageladas hallase egid seda si ese",1]
[2,"jefe ideas sida dias fije siglas leña fea lisa deidad del desde les se lea",1]
[3,"esa he ellas fila sea diseñe llega gelida jefes felices agasajadas el kafe",1]
[4,"de ese jefes ñu regulares lugar usarse seguridad asegurar sugiere fue",1]
[5,"sufre usara lugar figura usarla igual sigue su lugar duda fue use usada",1]
[6,"aliñar leer serie realidad darse era red leer usara lugar serie ir sufres",1]
[7,"realidad darse fijarse guardar agregar era idear darles reglas heredar",1]
[8,"heredarla agregarle figura heredarla agregarles",1]
[9,"STOP",1]
[10]
[11]
[12]
[13]
[14]
[15]
[16]
[17]
[18]
[19]
[20]
[21]
[22]
[23]
[24]
[25]
[26]
[27]
[28]
[29]
[30]
[31]
[32]
[33]
[34]
[35]
[36]
[37]
[38]
[39]
[40]
[41]
[42]
[43]
[44]
[45]
[46]
[47]
[48]
[49]
[50]
[51]
[52]
[53]
[54]
[55]
[56]
[57]
[58]

{"sheet":"lec.2","index":1,"n_rows":15,"n_cols":3,"rows_kept":15,"cut":false,"hidden":true,"merged":[]}
[1,"heredarla agregarle figura agregarle usarla usarse dejar series llegar",2]
[2,"ñu regulares lugar usarse seguridad asegurar sugiere fuera guardar",2]
[3,"sufre usara lugar figura usarla igual sigue su lugar duda fue use usada",2]
[4,"aliñar leer serie realidad darse era red leer usara lugar serie ir sufre",2]
[5,"realidad darse fijarse guardar agregar era idear darles reglas heredar",2]
[6,"heredarlas agregarle figura agregarla usarla llegar ñu regulares lugar",2]
[7,"usarse seguridad realidad darse fijarse guardar agregar era heredar",2]
[8,"frases kalidad dril risas fregar gradas del drakula dile si ries",2]
[9,"STOP",2]
[10]
[11]
[12]
[13]
[14]
[15]

{"sheet":"ESCRITURA","index":2,"n_rows":15,"n_cols":13,"rows_kept":15,"cut":false,"hidden":false,"merged":[[5,4,5,5],[13,0,13,9],[14,0,14,9],[12,0,12,9],[11,0,11,9],[10,0,10,10],[1,8,2,8],[0,10,4,10],[0,4,0,6],[3,0,3,8],[4,0,4,8],[0,9,4,9]]}
[null,null,null,null,"habilitar este contenido",null,null,null,null,null,null,1,{"$f":"NOW()","v":41715.707654976854}]
[{"$f":"A3-M2","v":348.29285381944646},null,null,null,null,"lección",{"$f":"L11","v":1},"nombre",null,null,null,null,41367.414801157407]
[{"$f":"NOW()","v":41715.707654976854},{"$f":"M1-M6","v":349.35241030092584},null,null,"pulsaciones",{"$f":"M5","v":""},"minuto","NUEVO",null,null,null,1,{"$f":"(HOUR(L5)*3600)+(MINUTE(L5)*60+SECOND(L5))","v":25303}]
[{"$f":"A11","v":"gases silla lagañas alaska iglesias flageladas hallase egid seda si ese"},null,null,null,null,null,null,null,null,null,null,550,{"$f":"IF(M3=0,\"\",L4/M3*60)","v":1.3041931786744654}]
[null,null,null,null,null,null,null,null,null,null,null,{"$f":"A2","v":348.29285381944646},{"$f":"IF(A4=\"STOP\",M4,\"\")","v":""}]
[null,null,null,null,{"$f":"A2","v":348.29285381944646},null,null,null,null,null,null,{"$f":"TODAY()","v":"2014-03-17"},41366.355244675928]
[]
[]
[]
[]
[{"$f":"VLOOKUP(L1,'DATOS CARTA00'!A1:B50,2,FALSE)","v":"gases silla lagañas alaska iglesias flageladas hallase egid seda si ese"},null,null,null,null,null,null,null,null,null,null,{"$f":"VLOOKUP(L1,'DATOS CARTA00'!A1:C23,3,FALSE)","v":1}]
[{"$f":"VLOOKUP(L1,lec.2!A1:B17,2,FALSE)","v":"heredarla agregarle figura agregarle usarla usarse dejar series llegar"},null,null,null,null,null,null,null,null,null,null,{"$f":"VLOOKUP(L1,lec.2!A1:C15,3,FALSE)","v":2}]
[{"$f":"VLOOKUP(L1,lec.03!A1:B18,2,FALSE)","v":"dile si rie del deskargar es rarilla la hija del jefe frias heredarla agregarle"},null,null,null,null,null,null,null,null,null,null,{"$f":"VLOOKUP(L1,lec.03!A1:C24,3,FALSE)","v":3}]
[{"$f":"VLOOKUP(L1,lec.04!A1:B10,2,FALSE)","v":"la españa que deseo es hija de dios para llegar lejos pero el puede los"},null,null,null,null,null,null,null,null,null,null,{"$f":"VLOOKUP(L1,lec.04!A1:C17,3,FALSE)","v":4}]
[{"$f":"VLOOKUP(L1,lec.05!A1:B100,2,FALSE)","v":"la españa que deseo es hija de dios para llegar lejos pero el puede los"},null,null,null,null,null,null,null,null,null,null,{"$f":"VLOOKUP(L1,lec.05!A1:C24,3,FALSE)","v":5}]

{"sheet":"PULSACIONES","index":3,"n_rows":35,"n_cols":12,"rows_kept":35,"cut":false,"hidden":false,"merged":[[0,4,0,5],[0,2,1,2],[0,3,1,3]]}
[{"$f":"VLOOKUP(G1,B3:E7,4,FALSE)","v":{"$error":"#N/A"}},null,"tiempo","lección","PULSACIONES MINUTO",null,{"$f":"MAX(B31:B35)","v":227.58620689655172},{"$f":"VLOOKUP(G1,B3:E7,4,FALSE)","v":{"$error":"#N/A"}},null,null,null,{"$f":"#REF!","v":{"$error":"#REF!"}}]
[{"$f":"TODAY()","v":"2014-03-17"},null,null,null,"nombre","volver",{"$f":"LARGE(B31:B35,2)","v":220},{"$f":"IF(G2,B32)","v":"1900-08-14T14:04:08.276"}]
["2013-04-03",242.64705882352939,"00:02:18.330",5,"NUEVO"]
["2013-04-02",195.26627218934914,"00:02:51.030",2,"NUEVO"]
["2013-04-02",226.02739726027397,"00:02:27.760",1,"NUEVO"]
["2013-04-02",217.10526315789474,"00:02:33.580",1,"NUEVO"]
["2013-03-26",242.64705882352939,"00:02:17.730",5,"NUEVO"]
["2013-03-26",253.84615384615384,"00:02:12.320",4,"NUEVO"]
["2013-03-26",202.45398773006136,"00:02:46.640",3,"NUEVO"]
["2013-03-26",220,"00:02:32.610",2,"NUEVO"]
["2013-03-26",218.54304635761588,"00:02:33.320",1,"NUEVO"]
["2013-03-25",242.64705882352939,"00:02:18.310",5,"NUEVO"]
["2013-03-25",244.44444444444446,"00:02:17.530",4,"NUEVO"]
["2013-03-25",222.97297297297297,"00:02:29.870",3,"NUEVO"]
["2013-03-25",214.28571428571431,"00:02:37.100",2,"NUEVO"]
["2013-03-25",222.97297297297297,"00:02:29.270",1,"NUEVO"]
["2013-03-24",237.41007194244602,"00:02:21.130",5,"NUEVO"]
["2013-03-24",237.41007194244602,"00:02:21.390",4,"NUEVO"]
["2013-03-24",224.48979591836735,"00:02:29",3,"NUEVO"]
["2013-03-24",202.45398773006136,"00:02:45.020",2,"NUEVO"]
["2013-03-24",237.41007194244602,"00:02:20.960",1,"NUEVO"]
["2013-03-20",242.64705882352939,"00:02:17.120",5,"NUEVO"]
["2013-03-20",234.04255319148936,"00:02:22.590",4,"NUEVO"]
["2013-03-20",211.53846153846155,"00:02:37.930",3,"NUEVO"]
["2013-03-20",220,"00:02:32.400",2,"NUEVO"]
["2013-03-20",250.00000000000003,"00:02:13.500",5,"NUEVO"]
["2013-03-20",207.54716981132077,"00:02:41.390",5,"NUEVO"]
["2013-03-20",234.04255319148936,"00:02:22.670",4,"NUEVO"]
["2013-03-20",211.53846153846155,"00:02:38.050",2,"NUEVO"]
["2013-03-20",222.97297297297297,"00:02:30.360",1,"NUEVO"]
["2012-03-13",208.86075949367088,"00:02:39.730",5,"NUEVO"]
["2012-03-13",227.58620689655172,"00:02:27.500",4,"NUEVO"]
["2012-03-13",220,"00:02:31.250",3,"NUEVO"]
["2012-03-13",201.21951219512195,"00:02:46.150",2,"NUEVO"]
["2012-03-13",202.45398773006136,"00:02:44.680",1,"NUEVO"]

{"sheet":"lec.03","index":4,"n_rows":24,"n_cols":3,"rows_kept":24,"cut":false,"hidden":true,"merged":[]}
[1,"dile si rie del deskargar es rarilla la hija del jefe frias heredarla agregarle",3]
[2,"figura agregarla usarla usarse dejar series llegar dile si rie del deskargar es",3]
[3,"hija del jefe frias frases kalidad dril hullas risas fregar gradas del drakulas",3]
[4,"realidad darse fijarse guardar agregar era dile si rie del deskargar es raras",3]
[5,"ñoño ñoña españa que dedo porque pequeños quiero aquellos por pero si",3]
[6,"propios apropiados esperado operador pasarlo poder preferido poseer",3]
[7,"puro pero paso operador pasarlo podido propiedad perforadas poder",3]
[8,"poderles porque pop preferido posa",3]
[9,"STOP",3]
[10]
[11]
[12]
[13]
[14]
[15]
[16]
[17]
[18]
[19]
[20]
[21]
[22]
[23]
[24]

{"sheet":"lec.04","index":5,"n_rows":26,"n_cols":3,"rows_kept":26,"cut":false,"hidden":true,"merged":[]}
[1,"la españa que deseo es hija de dios para llegar lejos pero el puede los",4]
[2,"el pequeño esperado puede pasar por los si eres ñoño eres ruidoso si",4]
[3,"pero rojillo ha sido operado del ojo porque es parado prefiere dar que",4]
[4,"apropiarse de la propiedad el ruido pop es feo dijo el jefe de las la que",4]
[5,"la españa que deseo es hija de dios para llegar lejos pero el pequeño",4]
[6,"esperado puede pasar por los dedos del asilo hola si eres ñoño eres que",4]
[7,"ruidosos pero rojillo apropiado para querer complace muchos como",4]
[8,"marcados marcada comercial compiladores comunes modificar muchas",4]
[9,"STOP",4]
[10]
[11]
[12]
[13]
[14]
[15]
[16]
[17]
[18]
[19]
[20]
[21]
[22]
[23]
[24]
[25]
[26]

{"sheet":"lec.05","index":6,"n_rows":45,"n_cols":3,"rows_kept":45,"cut":false,"hidden":true,"merged":[]}
[1,"la españa que deseo es hija de dios para llegar lejos pero el puede los",5]
[2,"el pequeño esperado puede pasar por los si eres ñoño eres ruidoso si",5]
[3,"pero rojillo ha sido operado del ojo porque es parado prefiere dar que",5]
[4,"apropiarse de la propiedad el ruido pop es feo dijo el jefe de las la que",5]
[5,"la españa que deseo es hija de dios para llegar lejos pero el pequeño",5]
[6,"esperado puede pasar por los dedos del asilo hola si eres ñoño eres que",5]
[7,"ruidosos pero rojillo apropiado para querer complace muchos como",5]
[8,"marcados marcada comercial compiladores comunes modificar muchas",5]
[9,"STOP",5]
[10]
[11]
[12]
[13]
[14]
[15]
[16]
[17]
[18]
[19]
[20]
[21]
[22]
[23]
[24]
[25]
[26]
[27]
[28]
[29]
[30]
[31]
[32]
[33]
[34]
[35]
[36]
[37]
[38]
[39]
[40]
[41]
[42]
[43]
[44]
[45]